bitfinex/quotes_ETHUSD_20230113
["timestamp","ask_amount","ask_price","bid_price","bid_amount"]
[1673622205305,3.60633272,1410.0,1409.7,7.15601448]
[1673622205777,3.60633272,1410.0,1409.7,14.24971448]
[1673622207304,7.86633272,1410.0,1409.7,7.15601448]
[1673622207478,7.93233272,1410.0,1409.7,7.15601448]
[1673622208167,9.70645176,1410.0,1409.7,14.24971448]
[1673622208463,9.70645176,1410.0,1409.7,0.066]
[1673622208464,21.86633272,1409.9,1409.7,0.066]
[1673622208672,7.86633272,1409.8,1409.7,0.004]
[1673622208912,7.93233272,1409.8,1409.6,0.10173779]
[1673622209197,3.60633272,1409.7,1409.6,0.10173779]
[1673622209390,7.86633272,1409.7,1409.6,0.10173779]
[1673622209577,15.02603272,1409.7,1409.6,0.10173779]
[1673622209794,7.93233272,1409.7,1409.6,0.10173779]
[1673622209994,7.99406272,1409.7,1409.6,0.10173779]
[1673622210210,9.86931482,1409.7,1409.6,0.10173779]
[1673622210436,0.12773,1409.7,1409.6,14.29015779]
[1673622210649,0.06173,1409.7,1409.6,7.26194779]
[1673622210870,0.06173,1409.7,1409.6,14.35615779]
[1673622211876,0.06173,1409.7,1409.6,23.19337679]
[1673622212092,0.06173,1409.7,1409.6,27.55248516]
[1673622212714,0.02600032,1409.7,1409.6,29.13649005]
[1673622212976,36.29728065,1410.2,1409.7,2.5]
[1673622213190,3.60633272,1410.1,1409.9,1.605]
[1673622213344,3.60633272,1410.1,1409.9,7.09247]
[1673622213559,0.066,1410.2,1410.0,1.594]
[1673622213798,1.12538065,1410.3,1410.1,7.09169]
[1673622214089,0.066,1410.4,1410.1,15.85438]
[1673622214292,1.05938065,1410.5,1410.2,1.601]
[1673622214499,2.9290469,1410.6,1410.3,14.18136]
[1673622214732,8.15174202,1410.6,1410.3,14.24736]
[1673622214939,4.73171337,1410.6,1410.3,14.24736]
[1673622215179,1.12538065,1410.7,1410.5,1.605]
[1673622215393,2.7112782,1410.8,1410.6,7.08918]
[1673622215713,3.60633272,1410.7,1410.6,0.066]
[1673622215923,5.31938065,1410.8,1410.5,1.605]
[1673622215924,9.4712782,1410.8,1410.5,1.605]
[1673622216077,10.57761092,1410.8,1410.5,10.279614]
[1673622216293,1.12538065,1410.8,1410.5,17.435294]
[1673622216495,1.05938065,1410.8,1410.5,17.435294]
[1673622216958,2.67472884,1410.8,1410.5,17.435294]
[1673622217146,6.28106156,1410.8,1410.5,17.435294]
[1673622217378,2.5,1410.7,1410.5,0.066]
[1673622217596,4.73171337,1410.8,1410.4,15.84664]
[1673622217913,4.66571337,1410.8,1410.4,15.84664]
[1673622218496,1.05938065,1410.8,1410.4,15.84664]
[1673622218702,1.05938065,1410.8,1410.5,1.584664]
[1673622218912,1.05938065,1410.8,1410.6,7.08918]
[1673622219137,9.56446475,1410.9,1410.6,7.15518]
[1673622219384,0.15918655,1410.9,1410.6,7.15518]
[1673622219595,0.09318655,1410.9,1410.7,2.320518]
[1673622219910,0.09318655,1410.9,1410.8,14.17634]
[1673622220120,0.09318655,1410.9,1410.8,14.24234]
[1673622221245,0.09318655,1410.9,1410.8,15.84634]
[1673622221595,8.655e-05,1410.9,1410.8,28.90585752]
[1673622221813,0.10345195,1411.1,1410.9,2.5]
[1673622222117,0.10345195,1411.1,1411.0,28.34868]
[1673622222430,0.09639028,1411.2,1411.0,35.22501272]
[1673622222625,0.09639028,1411.2,1411.1,25.43008777]
[1673622222841,0.09639028,1411.2,1411.1,26.20714828]
[1673622223225,0.09639028,1411.2,1411.1,22.10214828]
[1673622223433,0.09639028,1411.2,1411.1,21.39108777]
[1673622223802,0.09639028,1411.2,1411.1,24.99742049]
[1673622223953,0.09639028,1411.2,1411.1,21.39108777]
[1673622225276,0.09639028,1411.2,1411.1,24.99742049]
[1673622225436,0.09639028,1411.3,1411.2,2.5]
[1673622225648,0.09639028,1411.3,1411.2,21.451984]
[1673622225880,0.09639028,1411.3,1411.2,24.517984]
[1673622226265,0.09639028,1411.3,1411.2,22.017984]
[1673622226583,2.8e-07,1411.3,1411.2,26.33537723]
[1673622226797,0.10892655,1411.4,1411.3,2.5]
[1673622227048,0.1081049,1411.5,1411.3,29.37119044]
[1673622227365,0.1081049,1411.5,1411.4,19.36965272]
[1673622227580,0.1081049,1411.5,1411.4,18.82932]
[1673622228003,1.3921049,1411.5,1411.4,14.23632]
[1673622228167,1.3921049,1411.5,1411.4,0.066]
[1673622228478,0.1081049,1411.5,1411.4,7.08516]
[1673622228729,0.1081049,1411.5,1411.4,7.15116]
[1673622228949,1.3921049,1411.5,1411.4,0.066]
[1673622229160,0.6395049,1411.5,1411.2,8.75283]
[1673622229331,1.3921049,1411.5,1411.2,15.83863]
[1673622229540,0.1081049,1411.5,1411.3,7.08555]
[1673622229748,0.1081049,1411.5,1411.4,4.105]
[1673622229940,0.1081049,1411.5,1411.4,18.27532]
[1673622230160,0.1081049,1411.5,1411.4,24.94765272]
[1673622230425,4.9e-06,1411.5,1411.4,24.94765272]
[1673622230730,0.09318655,1411.7,1411.5,0.002]
[1673622230941,0.09318655,1411.7,1411.6,1.605]
[1673622231098,0.09318655,1411.7,1411.6,29.9416]
[1673622231312,0.09318655,1411.7,1411.6,33.0076]
[1673622232379,0.09318655,1411.7,1411.6,36.61393272]
[1673622235564,0.09318655,1411.7,1411.6,33.0076]
[1673622235894,1.37718655,1411.7,1411.6,21.31845]
[1673622236787,1.56803521,1411.7,1411.6,0.066]
[1673622236989,2.09943521,1411.7,1411.5,0.002]
[1673622237194,0.5314,1411.6,1411.5,0.002]
[1673622237658,3.0314,1411.6,1411.5,0.002]
[1673622238511,0.5314,1411.6,1411.5,0.002]
[1673622238685,0.09318655,1411.7,1411.5,15.77532]
[1673622238884,0.09318655,1411.7,1411.6,1.577532]
[1673622239208,0.09318655,1411.7,1411.6,15.745832]
[1673622239451,0.09318655,1411.7,1411.6,15.811832]
[1673622239884,0.09318655,1411.7,1411.6,17.416832]
[1673622240264,0.09318655,1411.7,1411.6,8.75515]
[1673622240585,1.37718655,1411.7,1411.6,0.066]
[1673622240915,1.37718655,1411.7,1411.5,7.15266]
[1673622241306,3.60633272,1411.6,1411.5,0.068]
[1673622241525,8.00405137,1411.6,1411.5,0.002]
[1673622241717,3.81005137,1411.6,1411.5,0.002]
[1673622241931,0.69058655,1411.7,1411.5,0.002]
[1673622242234,0.09318655,1411.7,1411.5,0.002]
[1673622243037,0.09318655,1411.7,1411.6,1.601]
[1673622243183,0.09318655,1411.7,1411.6,15.7693]
[1673622243392,0.09318655,1411.7,1411.6,18.287981]
[1673622244751,0.09318655,1411.7,1411.6,4.119681]
[1673622244964,0.09318655,1411.7,1411.6,11.137831]
[1673622245191,0.09318655,1411.7,1411.6,18.287981]
[1673622245401,0.09318655,1411.7,1411.6,15.8353]
[1673622245644,0.09318655,1411.7,1411.6,7.15015]
[1673622246762,1.37718655,1411.7,1411.6,0.066]
[1673622246907,1.37718655,1411.7,1411.5,7.15264]
[1673622248453,0.09318655,1411.7,1411.5,21.32196]
[1673622248666,0.09318655,1411.7,1411.5,24.322125]
[1673622250291,0.09318655,1411.7,1411.5,25.927125]
[1673622251287,0.09318655,1411.7,1411.5,29.53345772]
[1673622252173,0.09318655,1411.7,1411.5,30.24451823]
[1673622252499,6.55e-06,1411.7,1411.6,10.73578454]
[1673622252657,6.55e-06,1411.7,1411.6,28.94790182]
[1673622256351,6.55e-06,1411.7,1411.6,27.34290182]
[1673622257752,6.55e-06,1411.7,1411.6,0.066]
[1673622257906,6.55e-06,1411.7,1411.6,7.08415]
[1673622258148,6.55e-06,1411.7,1411.6,7.15015]
[1673622258358,6.55e-06,1411.7,1411.6,21.31845]
[1673622259455,0.48130655,1411.9,1411.6,21.31845]
[1673622259674,0.79648374,1411.9,1411.6,0.066]
[1673622259827,3.60633272,1411.8,1411.5,7.08647]
[1673622260041,3.60633272,1411.8,1411.5,7.15247]
[1673622260303,0.89203327,1411.7,1411.5,7.15247]
[1673622260474,2.5,1411.6,1411.5,7.15247]
[1673622260680,0.89203327,1411.7,1411.5,7.15247]
[1673622260681,0.95803327,1411.7,1411.5,7.15247]
[1673622260934,3.39203327,1411.7,1411.5,7.15247]
[1673622261318,3.39203327,1411.7,1411.5,0.068]
[1673622261319,8.05774664,1411.7,1411.5,0.068]
[1673622261529,3.48091823,1411.6,1411.5,0.002]
[1673622261741,14.07306027,1411.6,1411.5,0.002]
[1673622262097,21.06034486,1411.6,1411.5,0.002]
[1673622262405,28.14449486,1411.6,1411.5,0.002]
[1673622262592,26.02282962,1411.6,1411.5,0.002]
[1673622262808,24.42382962,1411.6,1411.5,0.002]
[1673622262985,18.39860533,1411.6,1411.5,0.002]
[1673622263197,12.27009356,1411.6,1411.5,0.002]
[1673622264259,7.85798618,1411.6,1411.5,0.002]
[1673622264500,0.5974,1411.6,1411.5,0.76]
[1673622264713,1.65632571,1411.7,1411.5,0.76]
[1673622264892,0.5314,1411.6,1411.5,0.002]
[1673622265096,12.75683503,1411.8,1411.5,8.510451]
[1673622265345,12.75683503,1411.8,1411.5,15.661111]
[1673622265346,0.066,1411.8,1411.5,15.661111]
[1673622265562,1.05892571,1411.9,1411.5,15.661111]
[1673622265781,4.26041298,1411.9,1411.5,15.661111]
[1673622265930,4.26041298,1411.9,1411.6,1.5661111]
[1673622266141,4.26041621,1411.9,1411.6,7.08386]
[1673622266356,2.64482326,1411.9,1411.6,14.23401]
[1673622266557,2.64482326,1411.9,1411.6,15.83901]
[1673622266558,2.67466138,1411.9,1411.6,15.83901]
[1673622266908,18.35929765,1412.0,1411.7,1.604]
[1673622267097,0.18647194,1412.0,1411.8,21.24945]
[1673622267306,0.12047194,1412.0,1411.8,23.600795]
[1673622269614,2.7652952,1412.0,1411.8,0.066]
[1673622269864,2.7652952,1412.0,1411.7,7.08347]
[1673622270056,2.7652952,1412.0,1411.7,14.23294]
[1673622271194,1.17939765,1412.0,1411.7,16.52512]
[1673622271597,1.17939765,1412.0,1411.9,1.597]
[1673622271598,0.12047194,1412.0,1411.9,1.597]
[1673622271846,0.12047194,1412.0,1411.9,29.9276]
[1673622272036,0.12047194,1412.0,1411.9,36.75209272]
[1673622273022,0.12047194,1412.0,1411.9,39.75209272]
[1673622273464,0.12047194,1412.0,1411.9,41.08844267]
[1673622273465,1.94e-06,1412.0,1411.9,41.08844267]
[1673622273608,0.11625389,1412.1,1412.0,2.1202196]
[1673622273952,3.89e-06,1412.1,1412.0,26.54326278]
[1673622274143,0.12584868,1412.5,1412.0,28.37913466]
[1673622274353,0.12584868,1412.5,1412.3,1.605]
[1673622274566,0.12584868,1412.5,1412.4,21.24042]
[1673622274786,0.12584868,1412.5,1412.4,21.30642]
[1673622275128,0.12584868,1412.5,1412.4,31.81281323]
[1673622275287,0.11498656,1412.7,1412.4,35.04605374]
[1673622275495,0.11498656,1412.7,1412.5,3.0]
[1673622275706,0.11498656,1412.7,1412.6,17.76461272]
[1673622275970,0.11498656,1412.7,1412.6,15.82128]
[1673622276907,0.11498656,1412.7,1412.6,7.14514]
[1673622278276,0.11498656,1412.7,1412.6,8.867583]
[1673622278596,0.11498656,1412.7,1412.6,17.551723]
[1673622278784,1.39898656,1412.7,1412.6,7.14514]
[1673622279178,1.39898656,1412.7,1412.6,0.066]
[1673622279418,9.79631928,1412.7,1412.5,0.066]
[1673622279635,9.79631928,1412.7,1412.3,7.14621]
[1673622279636,4.58596465,1412.6,1412.3,7.14621]
[1673622280014,0.97963193,1412.6,1412.3,7.14621]
[1673622280474,0.64598656,1412.7,1412.3,7.14621]
[1673622280669,4.25231928,1412.7,1412.3,7.14621]
[1673622280854,2.5,1412.6,1412.3,7.14621]
[1673622281275,10.36633272,1412.6,1412.3,0.066]
[1673622281507,1.03663327,1412.5,1412.3,7.08034]
[1673622281737,6.17233272,1412.6,1412.3,7.14634]
[1673622282064,0.066,1412.6,1412.3,14.22698]
[1673622282285,0.5311,1412.5,1412.3,14.22698]
[1673622282594,3.17598656,1412.7,1412.3,14.22698]
[1673622282595,0.64598656,1412.7,1412.3,16.357756]
[1673622283587,0.64598656,1412.7,1412.3,14.22698]
[1673622284009,4.25231928,1412.7,1412.3,7.14634]
[1673622284219,6.10633272,1412.6,1412.3,7.14634]
[1673622284470,3.60633272,1412.5,1412.3,0.066]
[1673622284686,22.39743272,1412.4,1412.1,0.066]
[1673622284850,3.60633272,1412.3,1412.0,0.1442196]
[1673622285060,3.39183327,1412.2,1412.0,0.0782196]
[1673622285908,20.99816599,1412.2,1412.0,0.0782196]
[1673622286248,21.06416599,1412.2,1412.0,0.0782196]
[1673622287386,18.56416599,1412.2,1412.0,0.0782196]
[1673622287613,4.56416599,1412.2,1412.0,0.0782196]
[1673622287916,6.99816599,1412.2,1412.0,0.0782196]
[1673622288125,21.06416599,1412.2,1412.0,0.0782196]
[1673622288319,2.1064166,1412.1,1412.0,0.0782196]
[1673622288539,5.71274932,1412.1,1412.0,0.0782196]
[1673622288797,6.30994932,1412.1,1412.0,0.0782196]
[1673622289016,17.65159932,1412.1,1412.0,0.0782196]
[1673622289312,20.65159932,1412.1,1412.0,0.0782196]
[1673622289505,27.79497932,1412.1,1412.0,0.0782196]
[1673622289698,28.02497932,1412.1,1412.0,0.0782196]
[1673622290121,13.63167932,1412.1,1412.0,0.0782196]
[1673622290369,11.52526272,1412.1,1412.0,0.0782196]
[1673622291050,14.02526272,1412.1,1412.0,0.0782196]
[1673622291424,11.52526272,1412.1,1412.0,0.0782196]
[1673622291644,8.52526272,1412.1,1412.0,0.0782196]
[1673622291946,15.83691272,1412.1,1412.0,0.0782196]
[1673622292119,21.55099889,1412.1,1412.0,0.0782196]
[1673622292522,28.63264889,1412.1,1412.0,0.0782196]
[1673622292789,31.63264889,1412.1,1412.0,0.0782196]
[1673622293185,24.55099889,1412.1,1412.0,0.0782196]
[1673622293404,17.23934889,1412.1,1412.0,0.0782196]
[1673622294019,9.97934889,1412.1,1412.0,0.0782196]
[1673622294268,0.12773,1412.1,1412.0,0.0782196]
[1673622294491,0.12773,1412.1,1412.0,7.9183696]
[1673622294492,0.06173,1412.1,1412.0,7.9183696]
[1673622294669,0.066,1412.2,1412.0,0.1442196]
[1673622294843,3.60633272,1412.1,1412.0,0.0782196]
[1673622295054,8.22696599,1412.1,1412.0,0.0782196]
[1673622295312,8.29296599,1412.1,1412.0,0.0782196]
[1673622295970,8.29296599,1412.1,1411.8,14.23155]
[1673622297283,8.29296599,1412.1,1411.8,14.22909361]
[1673622297492,8.29296599,1412.1,1411.8,14.22621831]
[1673622297703,0.8292966,1412.0,1411.8,14.22621831]
[1673622298017,3.60633272,1411.9,1411.8,7.14332831]
[1673622298235,3.60633272,1411.9,1411.8,0.066]
[1673622298489,3.60633272,1411.9,1411.5,7.15032]
[1673622298490,11.22028272,1411.9,1411.5,7.15032]
[1673622298661,7.25767865,1411.9,1411.5,21.31964]
[1673622299096,4.20363272,1411.9,1411.5,21.31964]
[1673622299328,0.5313,1411.9,1411.5,21.31964]
[1673622299836,3.0,1412.0,1411.5,21.31964]
[1673622300044,3.0,1412.0,1411.7,21.25065]
[1673622300261,6.60633272,1412.0,1411.7,21.31665]
[1673622300467,0.5972,1412.0,1411.7,23.608815]
[1673622300682,15.4491,1412.1,1411.7,25.203815]
[1673622300867,15.4491,1412.1,1411.8,2.5203815]
[1673622301066,0.066,1412.1,1411.9,21.24795]
[1673622301280,14.066,1412.2,1411.9,21.31395]
[1673622301608,3.60633272,1412.1,1411.9,7.14865]
[1673622301817,3.60633272,1412.1,1411.9,0.066]
[1673622302028,3.60633272,1412.1,1411.8,14.2318]
[1673622302029,2.5,1412.0,1411.8,14.2318]
[1673622302263,2.86063327,1412.0,1411.8,14.2318]
[1673622302697,2.86263327,1412.0,1411.8,14.2298]
[1673622302859,3.60633272,1411.9,1411.8,0.066]
[1673622303069,3.89259605,1411.9,1411.6,7.14973]
[1673622303532,4.42389605,1411.9,1411.6,14.23388]
[1673622303850,4.13763272,1411.9,1411.6,21.31803]
[1673622304055,0.5972,1412.0,1411.6,21.31803]
[1673622304271,7.13753272,1412.0,1411.6,21.31803]
[1673622304426,3.60633272,1411.9,1411.6,21.31803]
[1673622304849,6.10633272,1411.9,1411.6,21.31803]
[1673622305108,8.96868599,1411.9,1411.6,7.14973]
[1673622305421,20.31155599,1411.9,1411.6,0.066]
[1673622305610,2.5,1411.8,1411.5,7.15042]
[1673622305821,12.39748832,1411.8,1411.5,7.15042]
[1673622306041,12.46348832,1411.8,1411.5,7.15042]
[1673622306246,0.066,1411.8,1411.5,14.23508]
[1673622306434,17.2432,1412.0,1411.5,21.31974]
[1673622306648,20.84953272,1412.0,1411.5,21.31974]
[1673622306885,20.84953272,1412.0,1411.7,21.2507]
[1673622307101,4.20353272,1412.0,1411.7,21.3167]
[1673622307260,4.13753272,1412.0,1411.7,21.3167]
[1673622307687,0.5312,1412.0,1411.7,21.3167]
[1673622307935,30.446,1412.1,1411.9,14.1653]
[1673622308160,30.446,1412.1,1411.9,21.31395]
[1673622308161,0.066,1412.1,1411.9,21.31395]
[1673622308340,17.5972,1412.2,1411.9,21.31395]
[1673622308593,4.20353272,1412.2,1411.9,21.31395]
[1673622308761,0.5312,1412.2,1411.9,23.445345]
[1673622308975,1.12492571,1412.3,1411.9,25.050345]
[1673622309232,62.85359755,1412.4,1411.9,25.050345]
[1673622309233,62.39262571,1412.4,1411.9,25.050345]
[1673622309396,47.3337,1412.4,1411.9,25.050345]
[1673622309605,30.446,1412.4,1412.2,21.24342]
[1673622309857,30.446,1412.4,1412.2,21.30942]
[1673622309858,0.066,1412.4,1412.2,21.30942]
[1673622310075,0.5311,1412.5,1412.2,21.30942]
[1673622310455,16.71082326,1412.6,1412.2,21.30942]
[1673622310820,6.99953507,1412.5,1412.2,0.066]
[1673622310976,6.99953507,1412.5,1412.1,7.14763]
[1673622310977,4.30628623,1412.4,1412.1,7.14763]
[1673622311188,1.23105351,1412.4,1412.1,14.22928]
[1673622311426,2.71082326,1412.5,1412.1,14.22928]
[1673622311427,1.12492571,1412.5,1412.1,14.22928]
[1673622311647,20.56253845,1412.6,1412.1,14.22928]
[1673622311648,21.68746416,1412.6,1412.1,14.22928]
[1673622311821,2.5,1412.5,1412.1,14.22928]
[1673622312040,3.63256661,1412.6,1412.1,14.22928]
[1673622312236,3.63256661,1412.6,1412.2,3.026928]
[1673622312237,0.06173,1412.6,1412.2,3.026928]
[1673622312599,0.06173,1412.6,1412.3,22.83562]
[1673622312758,0.11498656,1412.7,1412.3,22.90162]
[1673622312967,0.11498656,1412.7,1412.4,2.290162]
[1673622313231,0.11498656,1412.7,1412.5,21.23892]
[1673622313387,0.11498656,1412.7,1412.5,21.30492]
[1673622313598,0.11498656,1412.7,1412.6,15.76328]
[1673622313813,0.11498656,1412.7,1412.6,15.82928]
[1673622314249,13.18000284,1413.0,1412.7,1.582928]
[1673622314481,0.066,1413.0,1412.8,3.60633272]
[1673622314732,0.13512931,1413.2,1412.9,34.91649272]
[1673622314861,0.13512931,1413.2,1413.0,9.59798199]
[1673622315067,0.13512931,1413.2,1413.1,32.14289272]
[1673622315334,0.13512931,1413.5,1413.2,2.5]
[1673622315524,0.13512931,1413.5,1413.4,1.605]
[1673622315714,0.13512931,1413.5,1413.4,15.75526]
[1673622315928,0.13512931,1413.5,1413.4,16.53232051]
[1673622316115,0.13512931,1413.5,1413.4,20.12691183]
[1673622316535,0.13512931,1413.5,1413.4,17.81085132]
[1673622317006,0.13512931,1413.5,1413.4,7.14113]
[1673622317225,0.13512931,1413.5,1413.2,7.07591]
[1673622317226,2.74322485,1413.3,1413.2,7.07591]
[1673622317537,2.74322485,1413.3,1413.2,1.99]
[1673622317710,2.74322485,1413.3,1413.2,7.83413]
[1673622317914,2.74322485,1413.3,1413.2,14.97626]
[1673622318118,2.74322485,1413.3,1413.2,7.14213]
[1673622318775,2.74322485,1413.3,1413.2,8.564002]
[1673622318992,2.74322485,1413.3,1413.2,17.245132]
[1673622319966,2.74322485,1413.3,1413.2,23.85146472]
[1673622320496,2.74322485,1413.3,1413.2,31.63865523]
[1673622321070,2.74322485,1413.3,1413.2,15.640132]
[1673622321283,2.74322485,1413.3,1413.2,14.21826]
[1673622323382,4.85e-06,1413.3,1413.2,19.42959272]
[1673622323920,4.85e-06,1413.3,1413.2,20.14065323]
[1673622324159,4.85e-06,1413.3,1413.2,23.14065323]
[1673622324325,4.85e-06,1413.3,1413.2,23.26366583]
[1673622325007,4.85e-06,1413.3,1413.2,17.94760532]
[1673622325217,4.85e-06,1413.3,1413.2,14.21826]
[1673622326644,4.85e-06,1413.3,1413.2,14.21826]
[1673622326869,4.85e-06,1413.3,1413.2,0.066]
[1673622326870,3.60633757,1413.3,1413.2,0.066]
[1673622327079,3.60633757,1413.3,1413.1,0.066]
[1673622327080,7.13713757,1413.3,1413.1,0.066]
[1673622327343,7.13713757,1413.3,1413.0,14.15359]
[1673622327344,0.5308,1413.2,1413.0,7.14278]
[1673622327534,4.85e-06,1413.3,1413.1,7.07622]
[1673622327754,4.85e-06,1413.3,1413.1,7.14222]
[1673622328058,4.85e-06,1413.3,1413.2,1.595]
[1673622328221,4.85e-06,1413.3,1413.2,18.03631]
[1673622328592,4.85e-06,1413.3,1413.2,18.10231]
[1673622328796,4.85e-06,1413.3,1413.2,21.70864272]
[1673622329179,4.85e-06,1413.3,1413.2,24.70864272]
[1673622329599,4.85e-06,1413.3,1413.2,23.11364272]
[1673622330793,4.85e-06,1413.3,1413.2,23.34364272]
[1673622330959,4.85e-06,1413.3,1413.2,23.11364272]
[1673622331316,4.85e-06,1413.3,1413.2,16.50731]
[1673622332104,4.85e-06,1413.3,1413.2,14.21826]
[1673622332788,2.50000485,1413.3,1413.2,0.066]
[1673622332986,0.53080485,1413.3,1413.1,7.14222]
[1673622333705,2.50000485,1413.3,1413.1,7.14222]
[1673622333868,2.50000485,1413.3,1413.1,0.066]
[1673622333869,1.94680048,1413.2,1413.1,0.066]
[1673622334102,1.94680048,1413.2,1413.1,0.004]
[1673622334398,1.94680048,1413.2,1412.9,7.14329]
[1673622334399,5.5531332,1413.2,1412.9,7.14329]
[1673622334568,5.6191332,1413.2,1412.9,14.22093]
[1673622334776,0.5968,1413.2,1412.9,14.22093]
[1673622334977,0.5328,1413.2,1412.9,14.21893]
[1673622335190,0.5308,1413.2,1412.9,14.22093]
[1673622337771,0.53080485,1413.3,1412.9,14.22093]
[1673622337927,4.85e-06,1413.3,1412.9,14.22093]
[1673622338130,4.85e-06,1413.3,1413.0,1.422093]
[1673622338348,4.85e-06,1413.3,1413.1,28.30656]
[1673622338715,4.85e-06,1413.3,1413.1,28.37256]
[1673622340599,4.85e-06,1413.3,1413.2,2.0]
[1673622340773,4.85e-06,1413.3,1413.2,14.15226]
[1673622340964,4.85e-06,1413.3,1413.2,14.21826]
[1673622342884,4.85e-06,1413.3,1413.2,17.055414]
[1673622343097,4.85e-06,1413.3,1413.2,17.053414]
[1673622343316,4.85e-06,1413.3,1413.2,20.055414]
[1673622343692,4.85e-06,1413.3,1413.2,27.131544]
[1673622344145,4.85e-06,1413.3,1413.2,24.131544]
[1673622344577,4.85e-06,1413.3,1413.2,21.29439]
[1673622347085,4.85e-06,1413.3,1413.2,24.29439]
[1673622348207,0.13512931,1413.5,1413.4,21.22539]
[1673622348421,0.13512931,1413.5,1413.4,21.29139]
[1673622352640,0.13512931,1413.5,1413.4,22.88939]
[1673622352852,0.13512931,1413.5,1413.4,26.04605318]
[1673622353094,0.13512931,1413.5,1413.4,29.04605318]
[1673622353304,0.13512931,1413.5,1413.4,32.83266174]
[1673622353305,9.31e-06,1413.5,1413.4,32.83266174]
[1673622353526,0.10111284,1413.6,1413.5,2.00560938]
[1673622353742,0.10111284,1413.6,1413.5,28.4338321]
[1673622353943,0.10111284,1413.6,1413.5,28.96380077]
[1673622354156,0.10111284,1413.6,1413.5,32.57013349]
[1673622354872,0.10111284,1413.6,1413.5,28.96380077]
[1673622355076,0.10111284,1413.6,1413.5,32.57013349]
[1673622355286,0.10111284,1413.6,1413.5,28.96380077]
[1673622356120,0.10111284,1413.6,1413.5,27.03980077]
[1673622356356,0.10111284,1413.6,1413.5,22.96949938]
[1673622357129,0.10111284,1413.6,1413.5,21.37149938]
[1673622357342,1.26711284,1413.6,1413.5,21.37149938]
[1673622358881,0.10111284,1413.6,1413.5,21.37149938]
[1673622359297,0.10111284,1413.6,1413.5,24.21616232]
[1673622359546,0.10111284,1413.6,1413.5,21.37149938]
[1673622361313,1.26711284,1413.6,1413.5,21.37149938]
[1673622362354,3.76711284,1413.6,1413.5,7.22223938]
[1673622362562,7.37344556,1413.6,1413.5,0.14760938]
[1673622362801,4.93944556,1413.6,1413.5,0.08160938]
[1673622362976,0.10111284,1413.6,1413.5,7.15623938]
[1673622363187,0.10111284,1413.6,1413.5,7.22223938]
[1673622363439,0.10111284,1413.6,1413.5,14.29686938]
[1673622364329,0.10111284,1413.6,1413.5,17.14153432]
[1673622364813,0.10111284,1413.6,1413.5,29.59087344]
[1673622364957,0.10111284,1413.6,1413.5,35.24503203]
[1673622365171,0.8269926,1413.7,1413.6,2.5]
[1673622365387,0.8269926,1413.7,1413.6,10.9014265]
[1673622365650,2.6e-06,1413.7,1413.6,25.47703948]
[1673622365860,4.45e-06,1413.8,1413.6,37.45604185]
[1673622366173,0.15904326,1414.3,1413.8,2.502]
[1673622366346,0.15904326,1414.3,1414.2,1.598]
[1673622366693,0.15904326,1414.3,1414.2,22.97119]
[1673622366910,0.15904326,1414.3,1414.2,23.03719]
[1673622367501,0.15904326,1414.3,1414.2,23.03519]
[1673622367715,0.15904326,1414.3,1414.2,23.03719]
[1673622367937,0.15904326,1414.3,1414.2,14.20826]
[1673622368433,1.32504326,1414.3,1414.2,14.20826]
[1673622368640,0.15904326,1414.3,1414.2,14.20826]
[1673622368850,0.15904326,1414.3,1414.2,19.41159272]
[1673622369706,0.15904326,1414.3,1414.2,22.41159272]
[1673622369944,0.15904326,1414.3,1414.2,21.75357627]
[1673622370278,3.26e-06,1414.3,1414.2,26.94890899]
[1673622370432,0.15904326,1414.4,1414.2,34.02003899]
[1673622370805,22.97072571,1415.0,1414.2,34.02003899]
[1673622370806,1.12492571,1415.0,1414.3,19.34559272]
[1673622370953,0.8269926,1415.1,1414.4,10.74293508]
[1673622371271,0.8269926,1415.1,1414.8,28.27212]
[1673622371489,0.8269926,1415.1,1414.9,3.60633272]
[1673622371853,0.8269926,1415.1,1415.0,28.26852]
[1673622372013,0.8269926,1415.1,1415.0,30.8091644]
[1673622372220,0.8269926,1415.1,1415.0,34.41549712]
[1673622372450,2.6e-06,1415.1,1415.0,34.41549712]
[1673622372801,0.16416951,1415.1,1415.0,30.8091644]
[1673622373626,1.33016951,1415.1,1415.0,21.26739]
[1673622373812,1.33016951,1415.1,1415.0,0.066]
[1673622374038,0.16416951,1415.1,1415.0,7.06713]
[1673622374216,0.16416951,1415.1,1415.0,14.19326]
[1673622374426,0.16416951,1415.1,1415.0,7.12613]
[1673622374637,0.41101612,1415.1,1415.0,7.12613]
[1673622375118,0.41101612,1415.1,1415.0,0.066]
[1673622375267,0.41101612,1415.1,1414.8,7.13368]
[1673622375268,0.94111612,1415.1,1414.8,7.13368]
[1673622375735,5.20111612,1415.1,1414.8,0.066]
[1673622375920,5.20111612,1415.1,1414.7,7.13463]
[1673622375921,0.52011161,1415.0,1414.7,7.13463]
[1673622376261,0.5302,1414.9,1414.7,7.13463]
[1673622376672,0.5302,1414.9,1414.7,14.20326]
[1673622377066,0.5302,1414.9,1414.7,0.066]
[1673622377313,0.5302,1414.9,1414.6,7.13467]
[1673622377314,4.13653272,1414.9,1414.6,7.13467]
[1673622377523,4.13653272,1414.9,1414.6,0.066]
[1673622377524,0.59193,1414.9,1414.6,0.066]
[1673622377714,0.5302,1414.9,1414.6,14.13791]
[1673622378063,0.5302,1414.9,1414.6,7.13478]
[1673622378369,4.13653272,1414.9,1414.6,0.066]
[1673622378538,4.13653272,1414.9,1414.6,14.13808]
[1673622378539,0.5302,1414.9,1414.6,14.13808]
[1673622378749,0.89183116,1414.9,1414.6,14.20408]
[1673622379414,4.49816388,1414.9,1414.6,0.066]
[1673622379739,8.75816388,1414.9,1414.5,7.13514]
[1673622379906,4.05614911,1414.8,1414.5,0.066]
[1673622380119,3.0302,1414.7,1414.4,7.13593]
[1673622380327,0.87820164,1414.7,1414.5,7.06958]
[1673622380676,0.5302,1414.7,1414.5,7.13558]
[1673622381578,3.60633272,1414.6,1414.5,0.066]
[1673622381953,8.39663272,1414.6,1414.3,0.066]
[1673622382135,11.25726599,1414.5,1414.1,0.066]
[1673622382306,3.60633272,1414.4,1414.0,7.13773]
[1673622382515,7.86633272,1414.3,1414.0,0.066]
[1673622382728,7.86633272,1414.3,1413.9,0.066]
[1673622382729,4.13673272,1414.2,1413.9,0.066]